bitfinex/quotes_ETHUSD_20230405
["timestamp","ask_amount","ask_price","bid_price","bid_amount"]
[1680699871065,1e-08,1922.0,1921.9,15.25204629]
[1680699872160,1e-08,1922.0,1921.9,10.03826949]
[1680699872671,1e-08,1922.0,1921.9,15.54626949]
[1680699872904,1e-08,1922.0,1921.9,15.77626949]
[1680699873379,2e-08,1922.2,1921.9,17.98226949]
[1680699873669,2e-08,1922.2,1922.1,10.43472255]
[1680699873839,2e-08,1922.2,1922.1,13.66672255]
[1680699874170,2e-08,1922.2,1922.1,13.69042546]
[1680699874465,2e-08,1922.2,1922.1,13.95073747]
[1680699874663,2e-08,1922.2,1922.1,16.48687748]
[1680699875073,2e-08,1922.2,1922.1,18.68687748]
[1680699876428,0.11000001,1922.8,1922.5,5.508]
[1680699876649,0.11000001,1922.8,1922.7,2.165]
[1680699876836,0.11000001,1922.8,1922.7,6.2519648]
[1680699877032,1e-08,1922.8,1922.7,9.2559648]
[1680699877525,1e-08,1922.8,1922.7,14.7639648]
[1680699878574,1e-08,1922.8,1922.7,9.2559648]
[1680699878745,1e-08,1922.8,1922.7,6.62168225]
[1680699879066,1e-08,1922.8,1922.7,14.7639648]
[1680699879224,2e-08,1922.9,1922.7,49.7639648]
[1680699879430,2e-08,1922.9,1922.8,8.10580648]
[1680699879658,2e-08,1922.9,1922.8,8.10780648]
[1680699880040,2e-08,1922.9,1922.8,8.12950148]
[1680699881247,4e-08,1923.1,1922.8,18.43678403]
[1680699881444,4e-08,1923.1,1922.9,8.9552327]
[1680699881769,4e-08,1923.1,1923.0,3.3114]
[1680699882071,4e-08,1923.1,1923.0,3.33309276]
[1680699882442,4e-08,1923.1,1923.0,1.33309276]
[1680699882634,4e-08,1923.1,1923.0,0.3114]
[1680699884640,4e-08,1923.1,1923.0,0.1294]
[1680699885733,4e-08,1923.1,1923.0,1.79713676]
[1680699887175,4e-08,1923.1,1923.0,1.775444]
[1680699887335,8.15328259,1923.1,1923.0,1.646044]
[1680699887536,8.15328259,1923.1,1923.0,1.700644]
[1680699887537,8.16128259,1923.1,1923.0,1.700644]
[1680699887868,0.00800004,1923.1,1923.0,1.700644]
[1680699888125,4e-08,1923.1,1923.0,1.700644]
[1680699888324,4e-08,1923.1,1923.0,1.702644]
[1680699888511,4e-08,1923.1,1923.0,1.700644]
[1680699888713,4e-08,1923.1,1923.0,2.064654]
[1680699889237,4e-08,1923.1,1923.0,2.066654]
[1680699889398,4e-08,1923.1,1923.0,2.004644]
[1680699889605,4e-08,1923.1,1923.0,2.002644]
[1680699891395,4e-08,1923.1,1923.0,1.966244]
[1680699891753,4e-08,1923.1,1923.0,2.002644]
[1680699894157,4e-08,1923.1,1923.0,2.184644]
[1680699894571,4e-08,1923.1,1923.0,1.950044]
[1680699894781,4e-08,1923.1,1923.0,1.948044]
[1680699895127,4e-08,1923.1,1923.0,1.966244]
[1680699895361,4e-08,1923.1,1923.0,2.002644]
[1680699895562,0.11000001,1923.2,1923.0,2.002644]
[1680699895563,0.01000005,1923.2,1923.0,1.948044]
[1680699896567,0.01000005,1923.2,1923.0,1.966244]
[1680699897480,0.01000005,1923.2,1923.0,2.002644]
[1680699897986,0.01000005,1923.2,1923.0,2.2029084]
[1680699898179,0.01000005,1923.2,1923.1,0.002]
[1680699898363,0.01000005,1923.2,1923.1,0.05658]
[1680699898872,0.01000005,1923.2,1923.1,0.02019]
[1680699899881,0.01000005,1923.2,1923.1,0.05658]
[1680699900191,0.01000005,1923.2,1923.1,0.27331712]
[1680699901270,0.01000005,1923.2,1923.1,1.27331712]
[1680699901469,0.01000005,1923.2,1923.1,0.002]
[1680699901857,0.01000005,1923.2,1923.1,0.02019]
[1680699902454,0.01000005,1923.2,1923.1,0.01819]
[1680699903078,0.01000005,1923.2,1923.1,0.12737]
[1680699903284,0.01000005,1923.2,1923.1,0.12937]
[1680699903589,0.01000005,1923.2,1923.1,0.12737]
[1680699905456,0.01000005,1923.2,1923.0,1.648044]
[1680699905657,0.01000005,1923.2,1923.0,1.8328684]
[1680699905960,0.01000005,1923.2,1923.0,1.8672684]
[1680699906392,0.01000005,1923.2,1923.0,1.700644]
[1680699907665,0.01000005,1923.2,1923.0,1.646044]
[1680699907866,0.01000005,1923.2,1922.9,0.002]
[1680699907867,7.92828255,1923.1,1922.9,0.002]
[1680699908217,3.141,1922.9,1922.4,0.03841]
[1680699908506,5.29,1922.8,1922.5,0.0182]
[1680699908663,7.92628255,1922.8,1922.5,0.0182]
[1680699908869,7.92628255,1922.8,1922.1,1.70599355]
[1680699908870,3.141,1922.5,1922.1,0.0202]
[1680699909067,3.141,1922.5,1922.2,0.0182]
[1680699909377,3.141,1922.3,1922.0,0.0202]
[1680699909580,3.141,1922.1,1922.0,1.63409752]
[1680699909893,2.63628255,1922.2,1922.0,1.68872752]
[1680699910102,3.143,1922.3,1922.0,0.05463]
[1680699910288,3.141,1922.3,1922.0,0.24636275]
[1680699910491,3.149,1922.5,1922.0,1.88046027]
[1680699910670,5.77528255,1922.4,1922.1,0.002]
[1680699911004,5.77728255,1922.4,1922.2,0.05461]
[1680699911371,0.002,1922.4,1922.2,0.05461]
[1680699911681,16.3192,1922.6,1922.2,0.05461]
[1680699911682,0.008,1922.6,1922.2,0.05661]
[1680699911905,2.159,1923.0,1922.2,0.25117175]
[1680699912070,2.63428255,1922.9,1922.2,0.25117175]
[1680699912375,3.141,1922.8,1922.4,0.12743]
[1680699912576,5.77528255,1922.8,1922.4,0.12743]
[1680699912807,5.78328255,1922.8,1922.4,0.12743]
[1680699913029,0.008,1922.8,1922.4,0.12743]
[1680699913187,17.8684,1923.1,1922.4,0.32415882]
[1680699913188,17.8764,1923.1,1922.4,0.32415882]
[1680699913508,5.77528255,1923.0,1922.4,0.32615882]
[1680699913809,7.93128255,1923.0,1922.4,0.12943]
[1680699914002,3.141,1922.8,1922.4,0.12743]
[1680699914180,3.141,1922.6,1922.2,1.63409752]
[1680699914387,3.141,1922.6,1922.3,0.0182]
[1680699914388,3.141,1922.4,1922.3,0.0182]
[1680699914581,3.25081702,1922.4,1922.3,0.0182]
[1680699914780,3.141,1922.4,1922.3,0.12743]
[1680699915513,2.64228255,1922.5,1922.3,0.12743]
[1680699915514,0.008,1922.5,1922.3,0.12743]
[1680699915815,3.141,1922.4,1922.3,0.05461]
[1680699917679,5.78128255,1922.4,1922.3,0.05461]
[1680699917884,5.78328255,1922.4,1922.3,0.05461]
[1680699918228,5.78328255,1922.4,1922.3,0.23668]
[1680699918388,3.143,1922.4,1922.3,0.23668]
[1680699918597,0.008,1922.6,1922.3,0.306046]
[1680699918801,1.075,1922.9,1922.3,0.23668]
[1680699918999,2.63428255,1922.8,1922.3,0.23668]
[1680699919340,2.63428255,1922.8,1922.3,1.87077752]
[1680699919502,3.141,1922.7,1922.3,1.87077752]
[1680699919709,5.77528255,1922.6,1922.3,1.87077752]
[1680699920028,5.78328255,1922.6,1922.3,1.87077752]
[1680699920229,5.77728255,1922.6,1922.3,1.87077752]
[1680699920394,3.143,1922.6,1922.3,1.87077752]
[1680699920597,3.149,1922.7,1922.3,1.87077752]
[1680699920803,5.77528255,1922.7,1922.3,2.36830845]
[1680699920987,5.78328255,1922.7,1922.3,2.37030845]
[1680699921393,5.78328255,1922.7,1922.3,2.36830845]
[1680699921814,5.78328255,1922.7,1922.3,1.87077752]
[1680699922149,5.78328255,1922.7,1922.3,1.87277752]
[1680699922442,5.78328255,1922.7,1922.3,1.87077752]
[1680699922618,5.77728255,1922.7,1922.3,1.87077752]
[1680699923016,5.77728255,1922.7,1922.3,1.87277752]
[1680699923650,5.77728255,1922.7,1922.3,1.87077752]
[1680699925609,2.63428255,1922.6,1922.3,1.68870752]
[1680699925811,3.141,1922.4,1922.3,0.05461]
[1680699926123,5.77528255,1922.4,1922.1,1.67650752]
[1680699926329,6.00528255,1922.3,1922.1,1.67050752]
[1680699926516,11.51528255,1922.3,1922.0,1.63409752]
[1680699926715,4.213,1922.1,1921.9,0.01821]
[1680699926920,0.008,1922.2,1921.9,0.05463]
[1680699927230,5.77528255,1922.3,1921.9,1.69072752]
[1680699927447,3.149,1922.3,1921.9,1.86708427]
[1680699927763,3.149,1922.4,1922.1,0.12744]
[1680699927918,5.78128255,1922.4,1922.1,0.12744]
[1680699928121,5.78328255,1922.4,1922.1,0.12744]
[1680699928338,0.008,1922.4,1922.1,0.12744]
[1680699928530,3.147,1922.6,1922.2,0.002]
[1680699928756,3.147,1922.6,1922.3,0.3095]
[1680699930082,10.1433,1922.7,1922.3,0.3095]
[1680699930083,10.1493,1922.7,1922.4,0.002]
[1680699930264,10.1493,1922.7,1922.5,0.12743]
[1680699930265,0.008,1922.7,1922.5,0.12743]
[1680699930473,3.147,1922.9,1922.5,0.12743]
[1680699930631,6.84970024,1922.9,1922.5,0.05461]
[1680699930836,6.85170024,1922.9,1922.5,0.0182]
[1680699931247,6.85170024,1922.9,1922.4,0.08430952]
[1680699931441,6.85170024,1922.9,1922.4,0.25615022]
[1680699931672,6.85170024,1922.9,1922.4,0.21974022]
[1680699931836,6.85170024,1922.9,1922.4,0.25615022]
[1680699932474,4.21741769,1922.9,1922.4,0.25615022]
[1680699932679,4.21541769,1922.9,1922.4,0.25615022]
[1680699932885,0.002,1923.0,1922.5,4.27038007]
[1680699933124,0.01000005,1923.2,1922.6,6.06113553]
[1680699933267,0.01000005,1923.2,1922.7,0.12741]
[1680699933440,0.01000005,1923.2,1922.7,0.13541]
[1680699933780,0.01000005,1923.2,1922.8,0.002]
[1680699933940,5.77528255,1923.1,1922.8,0.006]
[1680699934143,5.77728255,1923.1,1922.8,0.006]
[1680699934647,5.77728255,1923.1,1922.9,0.0546]
[1680699935145,5.77728255,1923.1,1922.9,0.0182]
[1680699935450,0.002,1923.1,1922.8,0.0242]
[1680699935638,0.01000005,1923.2,1922.7,0.0242]
[1680699935838,0.01000005,1923.2,1922.8,0.0182]
[1680699936035,0.01000005,1923.2,1922.8,0.0546]
[1680699936481,2.63428255,1923.1,1922.8,0.0182]
[1680699936646,5.77528255,1923.1,1922.7,0.0622448]
[1680699936846,5.77728255,1923.1,1922.8,0.0182]
[1680699937248,5.77728255,1923.1,1922.7,0.0986448]
[1680699937249,5.77728255,1923.1,1922.7,0.006]
[1680699937467,6.85228255,1923.1,1922.7,0.006]
[1680699937786,6.85228255,1923.1,1922.6,0.006]
[1680699937985,6.85228255,1923.1,1922.6,0.0606]
[1680699939007,0.002,1923.1,1922.7,1.65579366]
[1680699939186,0.01000005,1923.2,1922.8,0.29297937]
[1680699939505,0.01000005,1923.2,1922.9,0.002]
[1680699939645,0.01000005,1923.2,1923.0,0.3094]
[1680699940665,0.01000005,1923.2,1923.0,0.30688778]
[1680699943703,5.77528255,1923.1,1923.0,0.12488778]
[1680699943997,5.77728255,1923.1,1923.0,0.12488778]
[1680699945359,6.00728255,1923.1,1923.0,0.12488778]
[1680699946307,11.51528255,1923.1,1923.0,0.12488778]
[1680699946798,11.51528255,1923.1,1923.0,0.67089778]
[1680699946971,6.00728255,1923.1,1923.0,0.30688778]
[1680699947567,6.01328255,1923.1,1923.0,0.30688778]
[1680699948207,6.00728255,1923.1,1923.0,0.30688778]
[1680699952386,5.77728255,1923.1,1923.0,0.30688778]
[1680699952576,0.002,1923.1,1923.0,0.30688778]
[1680699952914,0.01000005,1923.2,1923.0,0.30688778]
[1680699953092,2.6442826,1923.2,1923.0,0.30688778]
[1680699953288,0.01000005,1923.2,1923.0,0.30688778]
[1680699955783,0.01000005,1923.2,1923.0,0.12488778]
[1680699956492,2.63428255,1923.1,1923.0,0.12488778]
[1680699956803,0.01200005,1923.2,1923.0,0.12488778]
[1680699957101,0.01000005,1923.2,1923.0,0.12488778]
[1680699962284,0.00697195,1923.2,1923.0,0.12488778]
[1680699965239,6.12328256,1923.3,1923.2,5.11360805]
[1680699965670,7.20528256,1923.3,1923.2,5.11360805]
[1680699966672,6.12328256,1923.3,1923.2,5.11360805]
[1680699967458,5.89328256,1923.3,1923.2,5.11360805]
[1680699967659,5.89328256,1923.3,1923.2,5.18639805]
[1680699968061,5.89328256,1923.3,1923.2,5.05902805]
[1680699968491,5.89328256,1923.3,1923.2,5.07721805]
[1680699968792,5.89328256,1923.3,1923.2,5.11360805]
[1680699973783,5.89328256,1923.3,1923.2,5.29558805]
[1680699973983,3.25900001,1923.3,1923.2,5.29558805]
[1680699974189,3.25100001,1923.3,1923.2,5.29558805]
[1680699975595,3.25100001,1923.3,1923.2,5.11360805]
[1680699976388,2.75100001,1923.3,1923.2,5.11360805]
[1680699978655,3.149,1923.5,1923.2,5.11360805]
[1680699978991,5.77528255,1923.5,1923.2,5.11360805]
[1680699979165,5.78328255,1923.5,1923.2,5.11360805]
[1680699981488,3.149,1923.5,1923.2,5.11360805]
[1680699981787,3.141,1923.5,1923.2,5.11360805]
[1680699982011,3.141,1923.5,1923.2,5.05902805]
[1680699982211,5.77528255,1923.5,1923.2,5.05902805]
[1680699982413,5.78328255,1923.5,1923.2,5.07721805]
[1680699982711,5.78328255,1923.5,1923.2,5.18639805]
[1680699982946,5.77728255,1923.5,1923.2,5.19239805]
[1680699983721,0.002,1923.5,1923.2,6.95104761]
[1680699984024,0.13000001,1923.8,1923.3,1.63409752]
[1680699984222,0.13000001,1923.8,1923.4,0.12736]
[1680699984381,0.13000001,1923.8,1923.4,0.30350575]
[1680699985220,0.13000001,1923.8,1923.4,0.30550575]
[1680699985844,0.13000001,1923.8,1923.4,4.93960327]
[1680699986157,0.13000001,1923.8,1923.5,1.0]
[1680699986453,0.13000001,1923.8,1923.6,0.30931]
[1680699986749,0.13000001,1923.8,1923.6,0.44240971]
[1680699987824,0.13000001,1923.8,1923.7,0.02168485]
[1680699988228,0.13000001,1923.8,1923.7,0.07625485]
[1680699988712,0.13000001,1923.8,1923.7,1.15225485]
[1680699989111,0.13000001,1923.8,1923.7,1.15425485]
[1680699989310,0.13000001,1923.8,1923.7,1.64485231]
[1680699989564,0.13000001,1923.8,1923.7,1.60497746]
[1680699989720,0.13000001,1923.8,1923.7,1.62316746]
[1680699991468,0.03000001,1923.8,1923.7,1.62316746]
[1680699991965,0.03000001,1923.8,1923.7,2.61084746]
[1680699992126,0.11000001,1923.9,1923.7,5.61084746]
[1680699992127,0.09000002,1923.9,1923.7,5.61084746]
[1680699992450,0.09000002,1923.9,1923.8,0.68842475]
[1680699992650,0.09000002,1923.9,1923.8,0.12734]
[1680699992850,0.09000002,1923.9,1923.8,0.12934]
[1680699993149,0.09000002,1923.9,1923.8,3.12934]
[1680699994289,0.09000002,1923.9,1923.8,4.12934]
[1680699995552,0.09000002,1923.9,1923.8,3.12934]
[1680699995752,0.09000002,1923.9,1923.8,4.78050175]
[1680699996093,0.09000002,1923.9,1923.8,4.78650175]
[1680699997110,0.09000002,1923.9,1923.8,0.69850175]
[1680699997280,0.09000002,1923.9,1923.8,0.12934]
[1680700000263,0.09000002,1923.9,1923.8,1.21134]
[1680700002341,0.09000002,1923.9,1923.8,0.02019]
[1680700002531,0.09000002,1923.9,1923.7,0.99168]
[1680700002710,0.09000002,1923.9,1923.7,0.98968]
[1680700002914,0.09000002,1923.9,1923.7,1.086648]
[1680700003110,0.09000002,1923.9,1923.7,2.168648]
[1680700003330,0.09000002,1923.9,1923.7,2.170648]
[1680700003541,0.09000002,1923.9,1923.7,2.168648]
[1680700003743,0.09000002,1923.9,1923.8,0.002]
[1680700003945,0.09000002,1923.9,1923.8,0.2190648]
[1680700004151,0.09000002,1923.9,1923.8,0.002]
[1680700004446,0.09000002,1923.9,1923.7,1.086648]
[1680700004652,0.11168489,1923.9,1923.7,0.98968]
[1680700004856,0.11168489,1923.9,1923.7,0.98768]
[1680700007631,6.43272744,1923.9,1923.7,0.98768]
[1680700007831,6.44072744,1923.9,1923.7,0.98768]
[1680700009628,6.07688744,1923.9,1923.7,0.98768]
[1680700009938,2.63428255,1923.8,1923.7,0.98768]
[1680700010121,6.55707255,1923.8,1923.7,0.98768]
[1680700010323,6.55907255,1923.8,1923.7,0.98768]
[1680700010639,6.01328255,1923.8,1923.7,0.98768]
[1680700010839,7.28679255,1923.8,1923.7,0.98768]
[1680700011669,6.55907255,1923.8,1923.7,0.98768]
[1680700011966,6.19521255,1923.8,1923.7,0.98768]
[1680700012283,6.01328255,1923.8,1923.7,0.98768]
[1680700012438,6.55907255,1923.8,1923.7,0.98768]
[1680700012778,11.70321255,1923.8,1923.7,0.98768]
[1680700015069,11.52128255,1923.8,1923.7,0.98768]
[1680700015372,6.01328255,1923.8,1923.7,0.98768]
[1680700019364,0.008,1923.8,1923.7,0.98768]
[1680700019682,3.147,1923.8,1923.7,0.98768]
[1680700020592,3.1438144,1923.8,1923.7,0.98768]
[1680700020745,3.141,1923.8,1923.7,0.98768]
[1680700020948,3.32293,1923.8,1923.7,0.98768]
[1680700021183,3.141,1923.8,1923.7,0.98768]
[1680700021350,5.77528255,1923.8,1923.7,0.98768]
[1680700021549,5.77728255,1923.8,1923.7,0.98768]
[1680700021755,6.00728255,1923.8,1923.7,0.98768]
[1680700022187,11.53696742,1923.8,1923.7,0.98768]
[1680700022373,12.60896742,1923.8,1923.7,0.98768]
[1680700022774,12.79089742,1923.8,1923.7,0.98768]
[1680700022977,12.60896742,1923.8,1923.7,0.98768]
[1680700023349,12.79089742,1923.8,1923.7,0.98768]
[1680700023566,11.28328255,1923.4,1923.2,5.06502805]
[1680700023803,12.35528255,1923.3,1923.2,5.06502805]
[1680700024101,12.53925255,1923.3,1923.2,5.06502805]
[1680700024249,12.90801695,1923.3,1923.2,4.64245173]
[1680700024451,13.13801695,1923.3,1923.2,4.64045173]
[1680700025168,21.13801695,1923.3,1923.2,5.173e-05]
[1680700025500,32.67490255,1923.3,1923.2,5.173e-05]
[1680700027091,33.19434645,1923.3,1923.2,5.173e-05]
[1680700027299,35.0987437,1923.3,1923.2,5.173e-05]
[1680700028009,8.649,1923.0,1922.4,0.15791073]
[1680700028176,8.83104,1922.6,1922.4,0.15791073]
[1680700028509,6.00528255,1922.5,1922.4,0.15791073]
[1680700028665,13.14343255,1922.5,1922.4,0.15791073]
[1680700029007,13.16793182,1922.5,1922.4,0.15791073]
[1680700029204,13.16993182,1922.5,1922.4,0.15791073]
[1680700030928,3.141,1922.3,1921.7,2.506]
[1680700031104,3.141,1921.8,1921.7,2.5]
[1680700031304,5.77528255,1921.8,1921.7,2.506]
[1680700031509,5.77728255,1921.8,1921.7,2.506]
[1680700031665,7.07928255,1921.8,1921.7,2.506]
[1680700032065,6.00728255,1921.8,1921.7,2.506]
[1680700032974,7.26140255,1921.8,1921.7,2.506]
[1680700033176,12.76940255,1921.8,1921.7,2.506]
[1680700033371,12.76940255,1921.8,1921.7,2.5]
[1680700033372,7.07928255,1921.8,1921.7,2.5]
[1680700033798,6.00728255,1921.8,1921.7,2.5]
[1680700034001,7.08328255,1921.8,1921.7,2.5]
[1680700034500,7.26540255,1921.8,1921.7,2.5]
[1680700034903,12.77340255,1921.8,1921.7,2.5]
[1680700035313,12.77540255,1921.8,1921.7,1.30582041]
[1680700035521,12.59128255,1921.8,1921.7,1.30582041]
[1680700036004,12.77340255,1921.8,1921.7,1.30582041]
[1680700036624,13.86612255,1921.8,1921.7,1.30582041]
[1680700036802,13.13764255,1921.8,1921.7,1.30582041]
[1680700036975,12.77340255,1921.8,1921.7,1.30582041]
[1680700037918,13.13764255,1921.8,1921.7,1.30582041]
[1680700038226,13.86612255,1921.8,1921.7,1.30582041]
[1680700038509,13.13764255,1921.8,1921.7,1.30582041]
[1680700039509,15.68732255,1921.8,1921.7,1.30582041]
[1680700040090,13.86612255,1921.8,1921.7,1.30582041]
[1680700040618,13.13764255,1921.8,1921.7,1.30582041]
[1680700041118,12.77340255,1921.8,1921.7,1.30582041]
[1680700041438,13.86612255,1921.8,1921.7,1.30582041]
[1680700041734,13.86612255,1921.8,1921.2,0.1]
[1680700041735,1.0,1921.7,1921.2,0.1]
[1680700041881,8.649,1921.3,1921.2,0.1]
[1680700042083,11.28528255,1921.3,1921.2,0.1]
[1680700042617,11.21528255,1921.3,1921.2,0.1]
[1680700044133,11.39744255,1921.3,1921.2,0.1]
[1680700044283,11.76177255,1921.3,1921.2,0.1]
[1680700044483,11.39744255,1921.3,1921.2,0.1]
[1680700044708,11.21528255,1921.3,1921.2,0.1]
[1680700045339,5.70728255,1921.3,1921.2,0.1]
[1680700045542,5.70728255,1921.3,1921.2,1.23664]
[1680700045543,0.002,1921.3,1921.2,1.23664]
[1680700045743,3.141,1921.5,1921.3,2.841]
[1680700046030,3.141,1921.5,1921.4,1.41974]
[1680700046398,3.141,1921.5,1921.4,1.13564]
[1680700046619,0.0068144,1921.7,1921.4,1.13564]
[1680700046929,3.141,1921.5,1921.4,1.09921]
[1680700047129,3.141,1921.5,1921.4,0.01821]
[1680700047634,3.141,1921.5,1921.4,0.05464]
[1680700048328,3.141,1921.5,1921.2,1.188]
[1680700048626,3.141,1921.5,1921.3,0.144296]
[1680700049015,3.141,1921.5,1921.3,0.180726]
[1680700049195,3.141,1921.5,1921.3,0.186726]
[1680700050113,0.002,1921.6,1921.3,1.268726]
[1680700050423,3.141,1921.8,1921.4,1.2068726]
[1680700050733,5.77528255,1921.8,1921.5,0.12748]
[1680700051024,5.77728255,1921.8,1921.5,0.26091526]
[1680700053029,5.77728255,1921.8,1921.5,1.34291526]
[1680700053326,3.143,1921.8,1921.5,1.34291526]
[1680700053525,3.141,1921.8,1921.6,0.13429153]
[1680700053727,3.141,1921.8,1921.7,0.05463]
[1680700054228,0.002,1922.0,1921.7,0.05463]
[1680700054402,5.77528255,1921.9,1921.7,0.05463]
[1680700054601,5.77728255,1921.9,1921.7,0.05463]
[1680700054802,3.143,1921.9,1921.7,0.05463]
[1680700055014,3.141,1921.9,1921.7,0.05463]
[1680700055433,3.143,1922.1,1921.7,0.05463]
[1680700055590,5.53449927,1922.2,1921.7,0.05463]
[1680700055591,3.141,1921.9,1921.7,0.05463]
[1680700055786,3.141,1921.9,1921.7,0.23676]
[1680700056301,3.141,1921.9,1921.7,1.31876]
[1680700056506,3.141,1921.9,1921.7,1.47135015]
[1680700057018,3.141,1921.9,1921.7,1.28922015]
[1680700057452,3.141,1921.9,1921.7,0.20722015]
[1680700057753,0.002,1922.0,1921.7,1.13563]
[1680700057952,0.02168487,1922.2,1921.7,1.13763]
[1680700058144,5.79696742,1922.2,1921.7,1.13563]
[1680700058339,5.79896742,1922.2,1921.9,0.05463]
[1680700058929,3.141,1922.0,1921.8,0.01821]
[1680700059129,3.141,1921.8,1921.7,0.01821]
[1680700059428,5.77528255,1921.8,1921.5,0.006]
[1680700059631,5.77528255,1921.8,1921.4,0.006]
[1680700059632,3.141,1921.6,1921.4,0.006]
[1680700059853,6.00528255,1921.5,1921.2,0.106]
[1680700060021,6.00728255,1921.5,1921.2,0.106]
[1680700060221,3.141,1921.3,1921.2,0.1]
[1680700060416,6.00528255,1921.3,1921.2,0.1]
[1680700060650,6.00728255,1921.3,1921.2,0.1]
[1680700061049,11.51528255,1921.3,1921.2,0.1]
[1680700061265,11.69744255,1921.3,1921.2,0.1]
[1680700061571,11.51528255,1921.3,1921.2,0.1]
[1680700061722,11.69744255,1921.3,1921.2,0.1]
[1680700061927,12.59728255,1921.3,1921.2,0.1]
[1680700062218,15.61896742,1921.3,1921.2,0.1]
[1680700062443,15.80112742,1921.3,1921.0,0.1]
[1680700062660,11.28328255,1921.1,1921.0,0.1]
[1680700062862,11.28528255,1921.1,1921.0,0.1]
[1680700063023,11.51528255,1921.1,1921.0,0.1]
[1680700063219,11.51528255,1921.1,1921.0,0.11821]
[1680700063419,11.51528255,1921.1,1921.0,0.1]
[1680700066563,14.69746255,1921.1,1921.0,0.1]
[1680700066721,14.51528255,1921.1,1921.0,0.1]
[1680700070023,9.00728255,1921.1,1921.0,0.1]
[1680700070767,5.77728255,1921.1,1921.0,0.1]
[1680700071140,5.77728255,1921.1,1921.0,1.182]
[1680700071141,0.002,1921.1,1921.0,1.182]
[1680700071335,3.141,1921.4,1921.0,1.320232]
[1680700071537,3.141,1921.2,1921.0,1.356662]
[1680700071938,5.77528255,1921.2,1921.0,1.358662]
[1680700072136,0.002,1921.2,1921.1,1.2178662]
[1680700072343,3.141,1921.4,1921.1,1.3453762]
[1680700072543,5.77528255,1921.4,1921.1,1.3473762]
[1680700072775,0.002,1921.4,1921.2,1.21873762]
[1680700072953,3.141,1921.7,1921.3,1.2095]
[1680700073276,5.77528255,1921.7,1921.5,0.05463]
[1680700073577,5.77728255,1921.7,1921.5,0.05463]
[1680700073782,5.77528255,1921.6,1921.3,0.006]
[1680700073935,5.77528255,1921.5,1921.4,0.01821]
[1680700074136,5.77528255,1921.5,1921.3,0.01821]
[1680700074137,5.77728255,1921.5,1921.3,0.01821]
[1680700074955,0.23,1921.4,1921.3,0.01821]
[1680700075239,6.00528255,1921.4,1921.3,0.01821]
[1680700075471,11.53696742,1921.4,1921.0,0.1]
[1680700075773,3.141,1921.2,1921.0,0.1]
[1680700076016,6.00528255,1921.1,1921.0,0.1]
[1680700076179,6.00728255,1921.1,1921.0,0.1]
[1680700076966,0.002,1921.1,1921.0,0.1]
[1680700077168,0.18218,1921.1,1921.0,0.1]
[1680700077465,6.00528255,1921.1,1921.0,0.1]
[1680700077783,6.00728255,1921.1,1921.0,0.1]
[1680700079342,6.00728255,1921.1,1921.0,0.11821]
[1680700079541,6.00728255,1921.1,1921.0,0.1]
[1680700080986,6.18946255,1921.1,1921.0,0.1]
[1680700081348,6.00728255,1921.1,1921.0,0.1]
[1680700081765,6.55383255,1921.1,1921.0,0.1]
[1680700082192,9.18946255,1921.1,1921.0,0.1]
[1680700082603,15.05958407,1921.1,1921.0,0.1]
[1680700082765,16.13158407,1921.1,1921.0,0.1]
[1680700082967,15.76721407,1921.1,1921.0,0.1]
[1680700084111,21.92018407,1921.1,1921.0,0.1]
[1680700085176,21.37363407,1921.1,1921.0,0.1]
[1680700085868,21.55581407,1921.1,1921.0,0.1]
[1680700086277,21.92018407,1921.1,1921.0,0.1]
[1680700086483,26.92018407,1921.1,1921.0,0.1]
[1680700086700,8.649,1920.9,1920.3,0.106]
[1680700086899,11.28328255,1920.7,1920.3,0.106]
[1680700087206,11.46751255,1920.7,1920.3,0.106]
[1680700087430,3.141,1920.5,1920.3,0.1]
[1680700087631,5.77528255,1920.4,1920.3,0.106]
[1680700087830,5.77728255,1920.4,1920.3,0.106]
[1680700087988,11.51528255,1920.4,1920.3,0.106]
[1680700088383,11.51528255,1920.4,1920.3,0.102]
[1680700088617,11.51528255,1920.4,1920.3,0.1]
[1680700089138,6.00728255,1920.4,1920.3,0.1]
[1680700089301,11.51528255,1920.4,1920.3,0.11822]
[1680700089712,11.51528255,1920.4,1920.3,0.1]
[1680700091490,11.69753255,1920.4,1920.3,0.1]
[1680700091727,11.51528255,1920.4,1920.3,0.1]
[1680700094300,11.69753255,1920.4,1920.3,0.1]
[1680700094612,14.69753255,1920.4,1920.3,0.1]
[1680700095222,14.51528255,1920.4,1920.3,0.1]
[1680700096420,14.28528255,1920.4,1920.3,0.1]
[1680700096624,11.28528255,1920.4,1920.3,0.1]
[1680700096923,11.28528255,1920.4,1920.3,0.11822]
[1680700097331,11.28528255,1920.4,1920.3,0.1]
[1680700097539,11.28528255,1920.4,1920.3,0.11822]
[1680700097941,11.51528255,1920.4,1920.3,0.11822]
[1680700098449,11.51528255,1920.4,1920.3,0.1]
[1680700099125,14.51528255,1920.4,1920.3,0.1]
[1680700099849,14.53696742,1920.4,1920.3,0.1]
[1680700101650,14.53696742,1920.4,1920.3,0.11822]
[1680700102553,14.53696742,1920.4,1920.3,0.1]
[1680700102724,14.53696742,1920.4,1920.3,0.11822]
[1680700103418,5.77728255,1920.4,1920.3,0.15467]
[1680700103746,5.77728255,1920.4,1920.3,0.11822]
[1680700104131,5.77728255,1920.4,1920.3,0.22757]
[1680700104323,5.77728255,1920.4,1920.3,0.23357]
[1680700104514,5.77728255,1920.4,1920.3,0.16067]
[1680700104751,5.77728255,1920.4,1920.3,0.12422]
[1680700104917,6.00728255,1920.4,1920.3,0.11822]
[1680700105123,6.00728255,1920.4,1920.3,0.1]
[1680700105861,11.51528255,1920.4,1920.3,0.1]
[1680700108271,16.16571742,1920.4,1920.3,0.1]
[1680700108874,21.16571742,1920.4,1920.3,0.1]
[1680700109024,14.53696742,1920.4,1920.3,0.1]
[1680700109226,15.81272742,1920.4,1920.3,0.1]